bitfinex/quotes_BTCUSD_20240723
["timestamp","ask_amount","ask_price","bid_price","bid_amount"]
[1721753790284,0.00292401,66091.0,66090.0,0.021]
[1721753790494,0.45484301,66091.0,66090.0,0.013]
[1721753790743,0.75745601,66091.0,66090.0,0.013]
[1721753790955,0.00092401,66091.0,66082.0,0.002794]
[1721753791137,0.00092401,66091.0,66078.0,0.002794]
[1721753791299,0.151323,66084.0,66080.0,0.002794]
[1721753791511,0.00092401,66091.0,66080.0,0.002794]
[1721753791512,0.30262,66090.0,66080.0,0.002794]
[1721753791850,0.151323,66084.0,66080.0,0.002794]
[1721753792059,0.00392401,66091.0,66081.0,0.05571831]
[1721753792346,0.151309,66090.0,66086.0,0.151317]
[1721753792519,0.151311,66089.0,66084.0,0.151321]
[1721753792744,0.00092401,66091.0,66084.0,0.05479228]
[1721753792926,0.003,66090.0,66089.0,0.151311]
[1721753793126,0.003,66090.0,66089.0,1.06907491]
[1721753793328,0.003,66090.0,66089.0,1.37169691]
[1721753793563,0.003,66090.0,66089.0,3.01434583]
[1721753794141,0.00592401,66091.0,66090.0,1.059159]
[1721753794353,0.00592401,66091.0,66090.0,1.22917891]
[1721753794746,0.00592401,66091.0,66090.0,1.53179591]
[1721753794954,0.00092401,66091.0,66090.0,2.33179591]
[1721753795153,0.00092401,66091.0,66090.0,2.47875856]
[1721753795933,0.00092401,66091.0,66090.0,3.04087556]
[1721753796140,0.00092401,66091.0,66090.0,3.11307556]
[1721753796335,0.00192401,66091.0,66090.0,3.11807556]
[1721753796705,0.00192401,66091.0,66090.0,3.11307556]
[1721753796911,0.00192401,66091.0,66090.0,3.41569256]
[1721753797141,0.009383,66108.0,66107.0,0.151269]
[1721753797409,0.009383,66108.0,66107.0,3.04657181]
[1721753797613,0.009383,66108.0,66107.0,3.14657181]
[1721753798044,0.009383,66108.0,66107.0,3.66971081]
[1721753798177,0.009383,66108.0,66107.0,4.51471081]
[1721753798364,0.009383,66111.0,66108.0,1.523701]
[1721753798559,0.009383,66111.0,66108.0,2.30431856]
[1721753798764,0.009383,66111.0,66108.0,3.16431856]
[1721753799181,0.009383,66111.0,66108.0,2.86178356]
[1721753799392,0.009383,66111.0,66108.0,2.30431856]
[1721753799593,0.009383,66111.0,66108.0,3.43931856]
[1721753800086,0.003,66109.0,66108.0,3.14278356]
[1721753800471,0.003,66109.0,66108.0,3.15216656]
[1721753801416,0.002,66109.0,66108.0,1.83048956]
[1721753801611,0.002,66109.0,66108.0,2.64987256]
[1721753801852,0.003,66109.0,66108.0,3.34587256]
[1721753802229,0.009383,66111.0,66110.0,1.520867]
[1721753802459,0.009383,66123.0,66122.0,0.453706]
[1721753802667,0.009383,66123.0,66122.0,0.62372591]
[1721753802885,0.009383,66123.0,66122.0,0.60072591]
[1721753803077,0.009383,66123.0,66122.0,0.90319691]
[1721753803520,0.009383,66123.0,66122.0,0.92619691]
[1721753803718,0.009383,66123.0,66122.0,0.7465934]
[1721753804079,0.009383,66123.0,66122.0,0.12286749]
[1721753804299,0.009383,66123.0,66122.0,0.14701991]
[1721753804502,0.009383,66123.0,66122.0,0.29825491]
[1721753804731,0.009383,66123.0,66122.0,0.002]
[1721753805005,0.009383,66123.0,66122.0,0.006]
[1721753805208,0.160616,66123.0,66120.0,0.151239]
[1721753805418,0.010383,66123.0,66122.0,0.005]
[1721753805623,0.010383,66123.0,66122.0,0.158235]
[1721753805827,0.009383,66123.0,66122.0,0.153235]
[1721753806027,0.009383,66123.0,66122.0,0.157235]
[1721753806373,0.009383,66123.0,66122.0,0.24815749]
[1721753806690,0.463082,66123.0,66122.0,0.09692249]
[1721753806881,0.538582,66123.0,66122.0,0.004]
[1721753807295,0.236116,66123.0,66122.0,0.004]
[1721753807504,0.236116,66123.0,66122.0,0.0196243]
[1721753807679,0.23592303,66123.0,66122.0,0.0236243]
[1721753807871,0.84085503,66123.0,66122.0,0.008]
[1721753808080,1.14332103,66123.0,66122.0,0.009]
[1721753808445,1.44578703,66123.0,66122.0,0.009]
[1721753809521,2.10309474,66123.0,66122.0,0.009]
[1721753810286,2.10309474,66123.0,66122.0,0.008]
[1721753810487,2.40556074,66123.0,66122.0,0.008]
[1721753810693,0.0756,66113.0,66091.0,0.002794]
[1721753810887,0.07348942,66111.0,66092.0,0.151303]
[1721753811088,0.151299,66094.0,66093.0,0.002794]
[1721753811437,0.151295,66096.0,66093.0,0.08677839]
[1721753811835,0.151296,66096.0,66093.0,0.08677839]
[1721753812041,0.151306,66091.0,66086.0,0.0615]
[1721753812195,0.151306,66091.0,66081.0,0.302657]
[1721753812406,0.453919,66091.0,66083.0,0.151324]
[1721753812743,0.0756,66093.0,66089.0,0.151309]
[1721753812947,0.151306,66092.0,66090.0,0.4243309]
[1721753813148,0.151306,66091.0,66090.0,0.0523309]
[1721753813366,0.756532,66091.0,66090.0,0.0523309]
[1721753813565,0.151315,66088.0,66078.0,0.0663]
[1721753813769,0.151308,66090.0,66087.0,0.002794]
[1721753813927,0.302595,66095.0,66088.0,0.0456758]
[1721753814271,0.151306,66091.0,66090.0,0.004]
[1721753814460,0.151304,66092.0,66090.0,0.004]
[1721753814599,0.151306,66091.0,66088.0,0.0456758]
[1721753814802,0.151304,66092.0,66088.0,0.1969888]
[1721753815012,0.0756,66099.0,66096.0,0.151294]
[1721753815369,0.003,66095.0,66092.0,0.151303]
[1721753815583,0.302571,66101.0,66091.0,0.302611]
[1721753815726,0.151279,66103.0,66092.0,0.52495]
[1721753815936,0.0756,66106.0,66092.0,0.222346]
[1721753816161,0.151266,66109.0,66104.0,0.151276]
[1721753816334,0.0756,66113.0,66105.0,0.14701991]
[1721753816535,0.055,66117.0,66106.0,0.01470199]
[1721753816735,0.055,66117.0,66106.0,0.1617219]
[1721753816993,0.07348942,66116.0,66106.0,0.1617219]
[1721753817306,0.453802,66108.0,66107.0,0.002794]
[1721753817511,0.30254,66107.0,66102.0,0.15128]
[1721753817690,0.151272,66106.0,66105.0,0.001]
[1721753817890,0.453816,66106.0,66105.0,0.001]
[1721753818675,1.058904,66106.0,66105.0,0.001]
[1721753818876,0.302555,66104.0,66098.0,1.5]
[1721753819178,0.151288,66099.0,66095.0,0.151296]
[1721753819375,0.151286,66100.0,66096.0,0.29831391]
[1721753819580,0.302568,66101.0,66096.0,0.14701991]
[1721753819581,0.151288,66099.0,66096.0,0.14701991]
[1721753819786,0.151286,66100.0,66096.0,0.29831391]
[1721753820054,0.07348942,66102.0,66096.0,0.18633831]
[1721753820218,0.22477042,66102.0,66098.0,0.151289]
[1721753820423,0.07348942,66102.0,66100.0,0.151285]
[1721753820626,0.302537,66108.0,66097.0,0.151291]
[1721753820627,0.151284,66101.0,66097.0,0.151291]
[1721753820823,0.302597,66095.0,66088.0,0.302626]
[1721753821037,0.151295,66096.0,66092.0,0.151304]
[1721753821344,0.07348942,66094.0,66090.0,0.151308]
[1721753821550,0.302613,66091.0,66085.0,0.151319]
[1721753821880,0.07348942,66094.0,66082.0,0.302649]
[1721753822004,0.07348942,66094.0,66082.0,0.0365373]
[1721753822209,0.151313,66088.0,66083.0,0.154117]
[1721753822411,0.07348942,66087.0,66080.0,0.15712117]
[1721753822599,0.07348942,66087.0,66081.0,0.002794]
[1721753822801,0.151329,66081.0,66080.0,0.000924]
[1721753823006,0.453987,66081.0,66080.0,0.000924]
[1721753823414,0.151329,66081.0,66080.0,0.000924]
[1721753823620,0.453987,66081.0,66080.0,0.000924]
[1721753823813,1.059303,66081.0,66080.0,0.000924]
[1721753824046,1.50898091,66081.0,66080.0,0.000924]
[1721753824254,1.60898091,66081.0,66080.0,0.000924]
[1721753824462,1.60998091,66081.0,66080.0,0.001924]
[1721753824667,1.68958091,66081.0,66080.0,0.00084804]
[1721753824865,1.99223891,66081.0,66080.0,0.00084804]
[1721753825070,2.20673891,66081.0,66080.0,0.00084804]
[1721753825312,0.302768,66058.0,66055.0,0.00852]
[1721753825487,0.454159,66056.0,66055.0,0.00852]
[1721753825707,1.059705,66056.0,66055.0,0.00852]
[1721753825867,0.756932,66056.0,66055.0,0.00852]
[1721753826071,1.20672491,66056.0,66055.0,0.00852]
[1721753826454,0.151425,66039.0,66031.0,0.002]
[1721753826689,0.302782,66054.0,66031.0,0.002]
[1721753826690,0.07348942,66047.0,66031.0,0.002]
[1721753826855,0.151418,66043.0,66031.0,0.002]
[1721753827064,0.151424,66040.0,66031.0,0.002]
[1721753827224,0.302822,66046.0,66039.0,0.151425]
[1721753827427,0.151417,66043.0,66040.0,0.0152265]
[1721753827997,0.005,66043.0,66040.0,0.0152265]
[1721753828156,0.005,66043.0,66038.0,0.00084]
[1721753828337,0.151417,66043.0,66038.0,0.152267]
[1721753828779,0.007,66043.0,66038.0,0.00084]
[1721753828920,0.302818,66047.0,66038.0,0.00084]
[1721753829116,0.302822,66046.0,66039.0,0.151424]
[1721753829323,0.151392,66054.0,66045.0,0.302823]
[1721753829528,0.302648,66084.0,66038.0,0.00084]
[1721753829529,0.0789,66063.0,66046.0,0.17730221]
[1721753829730,0.0789,66063.0,66046.0,0.14701991]
[1721753829935,0.44193401,66065.0,66047.0,0.1424]
[1721753830137,0.0465,66076.0,66053.0,0.302785]
[1721753830344,0.151387,66056.0,66054.0,0.002794]
[1721753830560,0.151365,66066.0,66061.0,0.151374]
[1721753830936,0.077,66072.0,66055.0,0.14701991]
[1721753830937,0.014,66063.0,66055.0,0.14701991]
[1721753831238,0.07348942,66065.0,66053.0,0.302784]
[1721753831521,0.07348942,66058.0,66054.0,0.001]
[1721753831756,0.07348942,66058.0,66052.0,0.002794]
[1721753831927,0.007,66054.0,66052.0,0.07124654]
[1721753832168,0.007,66054.0,66053.0,0.454179]
[1721753832337,0.007,66054.0,66053.0,0.92698591]
[1721753832552,0.007,66063.0,66062.0,0.454117]
[1721753832762,0.302769,66057.0,66055.0,0.002794]
[1721753832913,0.151382,66058.0,66052.0,0.002794]
[1721753833116,0.07348942,66059.0,66056.0,0.002794]
[1721753833440,0.22487042,66059.0,66054.0,0.15139]
[1721753833640,0.0771,66058.0,66053.0,0.005]
[1721753833804,0.756955,66054.0,66053.0,0.005]
[1721753834469,0.454173,66054.0,66053.0,0.005]
[1721753834677,0.756955,66054.0,66053.0,0.005]
[1721753835088,0.757955,66054.0,66053.0,0.003]
[1721753835735,0.455173,66054.0,66053.0,0.003]
[1721753836138,0.764955,66054.0,66053.0,0.004]
[1721753836562,0.756967,66053.0,66052.0,0.000924]
[1721753836773,0.302781,66055.0,66052.0,0.000924]
[1721753836971,0.472173,66054.0,66053.0,0.001]
[1721753837231,0.018,66054.0,66053.0,0.001]
[1721753837469,0.472173,66054.0,66053.0,0.001]
[1721753837678,1.066737,66054.0,66053.0,0.001]
[1721753838074,1.51653891,66054.0,66053.0,0.001]
[1721753838289,1.059754,66053.0,66052.0,0.000924]
[1721753838475,1.50956091,66053.0,66052.0,0.000924]
[1721753838723,1.51656091,66053.0,66052.0,0.001924]
[1721753839002,2.87274791,66053.0,66052.0,0.001924]
[1721753839202,1.73296091,66053.0,66052.0,0.000924]
[1721753839456,2.03574791,66053.0,66052.0,0.000924]
[1721753840745,1.73296091,66053.0,66052.0,0.000924]
[1721753841045,1.75618761,66053.0,66052.0,0.000924]
[1721753841473,1.75618761,66053.0,66052.0,0.001924]
[1721753841677,1.059978,66039.0,66028.0,0.002794]
[1721753841882,1.059978,66039.0,66001.0,0.303025]
[1721753841883,1.28048733,66039.0,66020.0,0.0647]
[1721753842038,1.80813833,66039.0,66020.0,0.0647]
[1721753842407,1.73464891,66039.0,66021.0,0.002794]
[1721753842609,1.73464891,66039.0,66021.0,0.151466]
[1721753842975,1.73764891,66039.0,66022.0,0.002794]
[1721753843189,1.73764891,66039.0,66021.0,0.002794]
[1721753843676,1.75164891,66039.0,66021.0,0.002794]
[1721753843881,2.04049991,66039.0,66021.0,0.002794]
[1721753844005,1.73764891,66039.0,66017.0,4e-05]
[1721753844345,1.45495045,66039.0,66024.0,0.302919]
[1721753844567,1.39929791,66039.0,66024.0,0.302917]
[1721753844759,1.42129791,66039.0,66038.0,0.00184]
[1721753844966,0.008,66039.0,66026.0,0.001634]
[1721753845109,0.07348942,66036.0,66027.0,0.0647]
[1721753845512,0.15144,66033.0,66029.0,0.151447]
[1721753845689,0.151431,66037.0,66032.0,0.151439]
[1721753845906,0.151431,66037.0,66027.0,0.0647]
[1721753845907,0.00116,66036.0,66035.0,0.454303]
[1721753846058,0.00116,66041.0,66039.0,0.151424]
[1721753846410,0.00116,66042.0,66038.0,0.001]
[1721753846638,0.00116,66043.0,66038.0,0.001]
[1721753846841,0.151419,66042.0,66038.0,0.152427]
[1721753847073,0.014,66039.0,66038.0,0.152427]
[1721753847272,0.014,66039.0,66038.0,0.455282]
[1721753847628,0.014,66039.0,66038.0,0.99285691]
[1721753847874,0.302823,66045.0,66038.0,0.0657]
[1721753848053,0.00116,66044.0,66038.0,0.0657]
[1721753848249,0.454276,66039.0,66038.0,0.0657]
[1721753848472,0.014,66039.0,66038.0,0.368555]
[1721753848693,0.151418,66043.0,66039.0,0.151423]
[1721753848927,0.152578,66042.0,66038.0,0.217127]
[1721753849099,0.07348942,66041.0,66038.0,0.0687]
[1721753849299,0.767127,66039.0,66038.0,0.003]
[1721753849518,0.01,66039.0,66038.0,0.154427]
[1721753849718,0.00116,66048.0,66038.0,0.0174427]
[1721753849925,0.00116,66049.0,66043.0,0.0779]
[1721753850127,0.07348942,66048.0,66043.0,0.0779]
[1721753850280,0.15142,66042.0,66037.0,0.0814]
[1721753850500,0.00116,66041.0,66040.0,0.151423]
[1721753850667,0.00116,66047.0,66039.0,0.151424]
[1721753850877,0.15141,66046.0,66040.0,0.001634]
[1721753851074,0.007,66043.0,66042.0,0.151418]
[1721753851338,0.007,66043.0,66042.0,0.518155]
[1721753851539,0.10116,66053.0,66049.0,0.151401]
[1721753851679,0.00116,66053.0,66052.0,0.151395]
[1721753852039,0.01,66047.0,66046.0,0.151409]
[1721753852222,0.01,66047.0,66046.0,0.454228]
[1721753852376,0.01,66047.0,66046.0,0.151409]
[1721753852575,0.006,66043.0,66042.0,0.0639]
[1721753853003,0.006,66043.0,66042.0,0.215318]
[1721753853225,0.006,66043.0,66042.0,0.0639]
[1721753853423,0.01,66043.0,66042.0,0.215318]
[1721753853631,0.01,66043.0,66042.0,1.05113221]
[1721753854028,0.004,66043.0,66042.0,0.215318]
[1721753854232,0.151427,66038.0,66037.0,0.0814]
[1721753854386,0.004,66043.0,66038.0,0.302854]
[1721753854612,0.00116,66042.0,66041.0,0.454261]
[1721753854819,0.004,66043.0,66042.0,0.757092]
[1721753855077,0.004,66043.0,66042.0,1.20694891]
[1721753855229,0.01,66043.0,66042.0,1.20694891]
[1721753855428,0.01,66043.0,66042.0,1.72244856]
[1721753855631,0.01,66043.0,66042.0,1.74544856]
[1721753856052,0.01,66043.0,66042.0,2.04828556]
[1721753856254,0.00116,66063.0,66062.0,0.517817]
[1721753856440,0.22484142,66071.0,66063.0,0.454111]
[1721753856638,0.07348942,66071.0,66063.0,0.15137]
[1721753856884,0.07348942,66071.0,66063.0,0.5137837]
[1721753857104,0.15136,66068.0,66063.0,0.5137837]
[1721753857296,0.07348942,66071.0,66063.0,0.0596727]
[1721753857511,0.302742,66063.0,66055.0,0.0637]
[1721753857675,0.07348942,66056.0,66055.0,0.215088]
[1721753857887,0.07348942,66056.0,66055.0,0.517865]
[1721753858108,0.07348942,66056.0,66055.0,0.6078196]
[1721753858303,0.07348942,66056.0,66048.0,0.0637]
[1721753858504,0.00116,66055.0,66054.0,0.151391]
[1721753858764,0.151392,66054.0,66048.0,0.0637]
[1721753858976,0.00116,66053.0,66049.0,0.302805]
[1721753859140,0.00116,66055.0,66054.0,0.151391]
[1721753859280,0.00116,66055.0,66048.0,0.0637]
[1721753859492,0.151414,66044.0,66043.0,0.0789]
[1721753859754,0.454249,66043.0,66042.0,0.0619]
[1721753860049,0.00116,66047.0,66044.0,0.151413]
[1721753860191,0.00116,66047.0,66042.0,0.0619]
[1721753860192,0.151412,66045.0,66042.0,0.0619]
[1721753860390,0.151416,66044.0,66042.0,0.0619]
[1721753860636,0.07348942,66049.0,66042.0,0.364735]
[1721753860811,0.302784,66054.0,66043.0,0.18512741]
[1721753861018,0.00116,66053.0,66046.0,0.302818]
[1721753861225,0.151394,66053.0,66048.0,0.302806]
[1721753861570,0.151405,66048.0,66042.0,0.0619]
[1721753861704,0.00116,66047.0,66046.0,0.151409]
[1721753861908,0.00116,66050.0,66047.0,0.151406]
[1721753862241,0.15256,66050.0,66047.0,0.151406]
[1721753862444,0.00116,66050.0,66045.0,0.302821]
[1721753862694,0.00116,66052.0,66049.0,0.151402]
[1721753862893,0.00116,66052.0,66049.0,0.04546244]
[1721753863184,0.00116,66053.0,66051.0,0.151397]
[1721753863399,0.004,66053.0,66048.0,0.302806]
[1721753863566,0.151399,66051.0,66047.0,0.151405]
[1721753863773,0.151399,66051.0,66047.0,0.151406]
[1721753863774,0.00116,66050.0,66047.0,0.151406]
[1721753864339,0.30281,66048.0,66042.0,0.0619]
[1721753864561,0.00316,66047.0,66046.0,0.455228]
[1721753864786,0.00316,66047.0,66046.0,0.758047]
[1721753864787,0.002,66047.0,66046.0,0.758047]
[1721753865177,0.002,66047.0,66046.0,1.20788591]
[1721753865378,0.00116,66063.0,66062.0,0.454117]
[1721753865532,0.00116,66067.0,66066.0,0.45409]
[1721753865733,0.00116,66067.0,66062.0,0.0622]
[1721753865734,0.303843,66076.0,66069.0,0.302712]
[1721753865923,0.00116,66076.0,66063.0,0.0782]
[1721753866143,0.07348942,66066.0,66060.0,0.302754]
[1721753866345,0.00116,66065.0,66058.0,0.08]
[1721753866546,0.00116,66065.0,66064.0,0.454104]
[1721753866747,0.07348942,66066.0,66058.0,0.22701991]
[1721753866941,0.07348942,66066.0,66064.0,0.151368]
[1721753866942,0.00116,66065.0,66064.0,0.151368]
[1721753867147,0.07348942,66066.0,66058.0,0.22701991]
[1721753867482,0.07348942,66066.0,66065.0,0.454098]
[1721753868206,0.07348942,66066.0,66065.0,0.75683]
[1721753868434,0.07348942,66066.0,66065.0,0.151366]
[1721753868636,0.002,66066.0,66065.0,0.832515]
[1721753869188,0.00284,66066.0,66065.0,1.28226691]
[1721753869449,0.00284,66066.0,66065.0,1.65109891]
[1721753869589,0.00284,66066.0,66065.0,1.67409891]
[1721753869823,0.00084,66066.0,66065.0,1.67409891]
[1721753870051,0.00084,66066.0,66065.0,1.75009891]
[1721753870222,0.00284,66066.0,66065.0,1.75009891]
[1721753870448,0.00584,66066.0,66065.0,1.85009891]
[1721753870647,0.00384,66066.0,66065.0,1.85009891]
[1721753870847,0.00084,66066.0,66065.0,1.85009891]
[1721753871083,0.00184,66066.0,66065.0,3.36409891]
[1721753871293,0.00116,66086.0,66085.0,1.20074]
[1721753871492,0.302574,66100.0,66093.0,0.151301]
[1721753871694,0.302584,66098.0,66091.0,0.151305]
[1721753871892,0.00116,66093.0,66088.0,0.302623]
[1721753872291,0.00116,66093.0,66090.0,0.151307]
[1721753872499,0.07348942,66086.0,66085.0,0.15132]
[1721753872726,0.07348942,66086.0,66085.0,0.45396]
[1721753872918,0.07348942,66086.0,66080.0,0.302659]
[1721753873256,0.07348942,66086.0,66085.0,0.005]
[1721753873477,0.22480642,66086.0,66085.0,0.005]
[1721753873693,0.07348942,66086.0,66085.0,0.15632]
[1721753873879,0.07348942,66086.0,66083.0,0.151323]
[1721753874040,0.07548942,66086.0,66085.0,0.15132]
[1721753874246,0.002,66086.0,66085.0,0.15132]
[1721753874406,0.07348942,66094.0,66085.0,0.151319]
[1721753874607,0.07648942,66086.0,66085.0,0.453959]
[1721753874814,0.07648942,66086.0,66085.0,0.5296197]
[1721753875035,0.07348942,66086.0,66085.0,0.5296197]
[1721753875539,0.07348942,66086.0,66085.0,0.453959]
[1721753875737,0.07348942,66086.0,66085.0,0.151319]
[1721753876194,0.15132,66085.0,66072.0,0.07025723]
[1721753876409,0.00116,66084.0,66082.0,0.151326]
[1721753876559,0.22480842,66086.0,66082.0,0.151326]
[1721753876761,0.00116,66085.0,66082.0,0.151326]
[1721753876964,0.00116,66085.0,66080.0,0.30266]
[1721753877165,0.00116,66085.0,66082.0,0.302653]
[1721753877418,0.151324,66084.0,66080.0,0.181597]
[1721753877623,0.00116,66083.0,66080.0,0.181597]
[1721753877825,0.15132,66085.0,66081.0,0.151329]
[1721753878025,0.00116,66084.0,66081.0,0.151329]
[1721753878227,0.00116,66084.0,66081.0,0.151327]
[1721753878435,0.15232,66085.0,66081.0,0.151327]
[1721753878584,0.15232,66085.0,66073.0,0.01515572]
[1721753878585,0.302664,66080.0,66073.0,0.01515572]
[1721753878792,0.00116,66079.0,66078.0,0.454008]
[1721753879007,0.00116,66084.0,66081.0,0.151327]
[1721753879565,0.00116,66084.0,66083.0,0.453973]
[1721753879834,0.001,66085.0,66082.0,0.151326]
[1721753880087,0.152473,66088.0,66084.0,0.151322]
[1721753880263,0.151324,66084.0,66079.0,0.302664]
[1721753880395,0.302641,66085.0,66072.0,0.0611]
[1721753880595,0.151325,66083.0,66073.0,0.01516022]
[1721753880807,0.00116,66082.0,66079.0,0.151333]
[1721753881157,0.152487,66082.0,66078.0,0.151336]
[1721753881354,0.152487,66082.0,66073.0,0.01516022]
[1721753881355,0.00116,66082.0,66079.0,0.151332]
[1721753881588,0.151325,66083.0,66079.0,0.151332]
[1721753881770,0.001,66085.0,66084.0,0.756612]
[1721753881942,0.15131,66090.0,66086.0,0.151317]
[1721753882140,0.00116,66089.0,66088.0,0.151312]
[1721753882389,0.00116,66092.0,66091.0,0.151306]
[1721753882686,0.15129,66098.0,66089.0,0.0607]
[1721753882987,0.00116,66097.0,66094.0,0.302598]
[1721753883142,0.00116,66097.0,66092.0,0.302606]
[1721753883143,0.303741,66098.0,66092.0,0.302606]
[1721753883349,0.07348942,66094.0,66093.0,0.151301]
[1721753883665,0.07348942,66094.0,66093.0,0.453904]
[1721753884069,0.07348942,66094.0,66092.0,0.151303]
[1721753884269,0.00116,66093.0,66089.0,0.21201]
[1721753884451,0.00116,66093.0,66090.0,0.151308]
[1721753884652,0.00116,66093.0,66092.0,0.151304]
[1721753885049,0.00116,66093.0,66092.0,0.4690424]
[1721753885439,0.00116,66093.0,66092.0,0.453912]
[1721753885630,0.00116,66093.0,66092.0,0.454912]
[1721753885839,0.00116,66093.0,66092.0,0.001]
[1721753886288,0.00116,66093.0,66089.0,0.30262]
[1721753886289,0.00116,66093.0,66090.0,0.151307]
[1721753886628,0.00116,66093.0,66091.0,0.151305]
[1721753886778,0.152462,66093.0,66087.0,0.302628]
[1721753887105,0.152462,66093.0,66088.0,0.302623]
[1721753887307,0.00116,66093.0,66088.0,0.151312]
[1721753887506,0.461064,66093.0,66092.0,0.001]
[1721753887665,0.07348942,66094.0,66087.0,0.302627]
[1721753887666,0.22479042,66094.0,66087.0,0.302627]
[1721753888006,0.00216,66093.0,66083.0,0.0658]
[1721753888207,0.07348942,66084.0,66083.0,0.25486259]
[1721753888512,0.07348942,66084.0,66083.0,0.519773]
[1721753889275,0.07348942,66084.0,66071.0,0.3765]
[1721753889493,0.07348942,66076.0,66072.0,0.302699]
[1721753889698,0.07348942,66076.0,66073.0,0.151346]
[1721753889914,0.00116,66075.0,66073.0,0.151347]
[1721753890103,0.07348942,66076.0,66075.0,0.151343]
[1721753890306,0.07348942,66076.0,66074.0,0.30269]
[1721753890307,0.07348942,66076.0,66074.0,0.151343]
[1721753890530,0.00116,66075.0,66074.0,0.151343]
[1721753890884,0.00116,66075.0,66074.0,0.454033]
[1721753891083,0.00116,66075.0,66074.0,0.24246245]
[1721753891782,0.00116,66075.0,66074.0,0.84784245]
[1721753891984,0.00116,66075.0,66074.0,1.29755236]
[1721753892180,0.002,66076.0,66075.0,0.756715]
[1721753892468,0.004,66076.0,66075.0,0.90373491]
[1721753892637,0.004,66076.0,66075.0,1.3149827]
[1721753892838,0.00116,66083.0,66075.0,1.3149827]
[1721753892839,0.00116,66083.0,66082.0,0.151327]
[1721753893073,0.00116,66083.0,66075.0,0.2555817]
[1721753893275,0.00116,66083.0,66074.0,0.001]
[1721753893276,0.07348942,66076.0,66074.0,0.001]
[1721753893450,0.00116,66075.0,66074.0,0.151345]
[1721753893652,0.00116,66075.0,66071.0,0.3027]
[1721753893870,0.00116,66075.0,66073.0,0.151347]
[1721753894074,0.00116,66075.0,66071.0,0.151351]
[1721753894075,0.152504,66075.0,66071.0,0.151351]
[1721753894287,0.00116,66075.0,66072.0,0.0467942]
[1721753894469,0.00116,66075.0,66074.0,0.756725]
[1721753895073,0.07348942,66076.0,66075.0,0.454029]
[1721753897471,0.07348942,66084.0,66083.0,0.151324]
[1721753897819,0.07348942,66084.0,66083.0,0.453973]
[1721753898203,0.44193401,66092.0,66083.0,0.5166123]
[1721753898406,0.302566,66102.0,66093.0,0.453904]
[1721753898748,0.00116,66096.0,66093.0,0.151301]
[1721753898955,0.00116,66093.0,66092.0,0.151303]
[1721753899298,0.00116,66093.0,66092.0,0.8321721]
[1721753899495,0.00116,66093.0,66092.0,0.756519]
[1721753899702,0.00116,66100.0,66092.0,0.302608]
[1721753900110,0.07348942,66094.0,66093.0,0.7867678]
[1721753900304,0.07548942,66094.0,66093.0,0.7877678]
[1721753900863,0.22678842,66094.0,66093.0,0.001]
[1721753901496,0.52938742,66094.0,66093.0,0.001]
[1721753901699,1.13458542,66094.0,66093.0,0.001]
[1721753901902,0.302606,66093.0,66088.0,0.151312]
[1721753902240,0.151308,66091.0,66087.0,0.151314]
[1721753902450,0.302622,66089.0,66083.0,0.0603]
[1721753902667,0.07348942,66084.0,66083.0,0.151324]
[1721753902846,0.07348942,66084.0,66069.0,0.0823]
[1721753903048,0.07348942,66073.0,66072.0,0.74905]
[1721753903202,0.07348942,66073.0,66072.0,1.05175]
[1721753903589,0.07348942,66073.0,66072.0,0.74905]
[1721753903962,0.302655,66082.0,66072.0,0.74905]
[1721753903963,0.00116,66081.0,66074.0,0.302689]
[1721753904103,0.37613742,66084.0,66072.0,0.295]
[1721753904104,0.07348942,66075.0,66072.0,0.295]
[1721753904309,0.07348942,66075.0,66074.0,0.151345]
[1721753904563,0.07348942,66075.0,66072.0,0.597698]
[1721753904724,0.07348942,66075.0,66074.0,0.151345]
[1721753904926,0.07348942,66075.0,66074.0,0.454035]
[1721753905309,0.151334,66079.0,66076.0,0.15134]
[1721753905611,0.151335,66079.0,66075.0,0.151342]
[1721753905846,0.151336,66078.0,66073.0,0.302695]
[1721753905999,0.151334,66079.0,66075.0,0.151342]
[1721753906189,0.151337,66078.0,66075.0,0.151342]
[1721753906406,0.302658,66082.0,66075.0,0.151341]
[1721753906609,0.302658,66082.0,66075.0,0.29830465]
[1721753906850,0.001,66073.0,66072.0,0.309]
[1721753907124,0.001,66073.0,66072.0,1.06575]
[1721753907379,0.302642,66085.0,66079.0,0.151333]
[1721753907622,0.151329,66082.0,66076.0,0.302681]
[1721753907856,0.001,66078.0,66077.0,0.454013]
[1721753908063,0.001,66078.0,66077.0,0.75669]
[1721753908268,0.001,66078.0,66077.0,1.059367]
[1721753908649,0.151316,66087.0,66083.0,0.151324]
[1721753908980,0.151314,66088.0,66084.0,0.151321]
[1721753909182,0.00116,66087.0,66083.0,0.151324]
[1721753909458,0.15132,66085.0,66082.0,0.151326]
[1721753909764,0.151323,66084.0,66080.0,0.15133]
[1721753909965,0.151317,66087.0,66083.0,0.151323]
[1721753910127,0.15132,66085.0,66081.0,0.302657]
[1721753910345,0.151319,66086.0,66082.0,0.151326]
[1721753910550,0.15132,66085.0,66082.0,0.151326]
[1721753911170,0.002,66087.0,66081.0,0.302658]
[1721753911345,0.002,66088.0,66087.0,0.453946]
[1721753911544,0.00116,66093.0,66089.0,0.151308]
[1721753911748,0.00116,66094.0,66088.0,0.302623]
[1721753911956,0.07348942,66094.0,66088.0,0.151312]
[1721753912155,0.00116,66090.0,66088.0,0.151312]
[1721753912358,0.00116,66091.0,66089.0,0.151311]
[1721753912555,0.00116,66091.0,66082.0,0.14701991]
[1721753912767,0.00116,66091.0,66088.0,0.151313]